[Event "*** Titled Tuesday Blitz"]
[Site "Chess.com"]
[Date "2021.02.16"]
[Round "2"]
[White "Make_it_shine060"]
[Black "Zq1"]
[Result "0-1"]
[WhiteElo "2172"]
[BlackElo "2525"]
[TimeControl "180+1"]
[EndTime "10:19:45 PST"]
[Termination "Zq1 won by resignation"]

1. d4 {[%clk 0:03:00.9]} 1... Nf6 {[%clk 0:02:59.2]} 2. c4 {[%clk 0:03:01]} 2...
a6 {[%clk 0:02:59.5]} 3. Nc3 {[%clk 0:03:00.3]} 3... c5 {[%clk 0:02:59.5]} 4. d5
{[%clk 0:02:57.6]} 4... b5 {[%clk 0:02:59]} 5. cxb5 {[%clk 0:02:50]} 5... axb5
{[%clk 0:02:58.6]} 6. Nxb5 {[%clk 0:02:50.2]} 6... Qa5+ {[%clk 0:02:57.5]} 7.
Nc3 {[%clk 0:02:49.9]} 7... Bb7 {[%clk 0:02:57.2]} 8. Bd2 {[%clk 0:02:35.4]}
8... Qb6 {[%clk 0:02:56.9]} 9. e4 {[%clk 0:02:35]} 9... e6 {[%clk 0:02:55.4]}
10. dxe6 {[%clk 0:02:23.2]} 10... fxe6 {[%clk 0:02:54.5]} 11. Qc2 {[%clk
0:02:14.6]} 11... Nc6 {[%clk 0:02:53.1]} 12. Nf3 {[%clk 0:02:09.5]} 12... Nd4
{[%clk 0:02:52.5]} 13. Nxd4 {[%clk 0:02:03.7]} 13... cxd4 {[%clk 0:02:51.2]} 14.
Nb5 {[%clk 0:02:03.3]} 14... Rc8 {[%clk 0:02:36.6]} 15. Qa4 {[%clk 0:02:01.9]}
15... Nxe4 {[%clk 0:02:22.6]} 16. Ba5 {[%clk 0:02:00.3]} 16... Nc5 {[%clk
0:01:18.6]} 17. Bxb6 {[%clk 0:01:49.6]} 17... Nxa4 {[%clk 0:01:17.9]} 18. Bxd4
{[%clk 0:01:48]} 18... Bb4+ {[%clk 0:01:17.8]} 19. Kd1 {[%clk 0:01:34.7]} 19...
O-O {[%clk 0:01:16.9]} 20. a3 {[%clk 0:01:26.2]} 20... Be7 {[%clk 0:01:14.1]}
21. b3 {[%clk 0:01:23.7]} 21... Nc5 {[%clk 0:01:12.4]} 22. Rb1 {[%clk
0:01:11.3]} 22... Be4 {[%clk 0:01:10.5]} 23. Rb2 {[%clk 0:01:10]} 23... Nd3
{[%clk 0:01:06.2]} 24. Bxd3 {[%clk 0:01:06.3]} 24... Bxd3 {[%clk 0:01:05.6]} 25.
Nc3 {[%clk 0:01:04.4]} 25... Bxa3 {[%clk 0:01:03.4]} 26. Rd2 {[%clk 0:01:00.3]}
26... Ba6 {[%clk 0:00:56.3]} 27. f3 {[%clk 0:00:36.1]} 27... Bb4 {[%clk
0:00:54.8]} 28. Ra2 {[%clk 0:00:31.3]} 28... Bxc3 {[%clk 0:00:50.2]} 29. Bxc3
{[%clk 0:00:29.5]} 29... Rxc3 {[%clk 0:00:50.8]} 30. Rxa6 {[%clk 0:00:28.6]}
30... Rxb3 {[%clk 0:00:50.9]} 31. Ke2 {[%clk 0:00:26.3]} 31... Rb2+ {[%clk
0:00:49.6]} 32. Ke3 {[%clk 0:00:26.4]} 32... Rxg2 {[%clk 0:00:48.8]} 33. Rd1
{[%clk 0:00:25.4]} 33... Rxh2 {[%clk 0:00:45.8]} 34. Rxd7 {[%clk 0:00:24]} 34...
Rh3 {[%clk 0:00:45.8]} 35. Rxe6 {[%clk 0:00:22.2]} 35... Rhxf3+ {[%clk
0:00:45.2]} 36. Ke4 {[%clk 0:00:18.9]} 36... R3f7 {[%clk 0:00:44.6]} 37. Rdd6
{[%clk 0:00:17.6]} 37... h6 {[%clk 0:00:43.8]} 38. Rg6 {[%clk 0:00:15.4]} 38...
Rf6 {[%clk 0:00:37.9]} 39. Rdxf6 {[%clk 0:00:12.5]} 39... Rxf6 {[%clk 0:00:37]}
40. Rg4 {[%clk 0:00:12.7]} 40... Kh7 {[%clk 0:00:36.7]} 41. Ke5 {[%clk
0:00:11.3]} 41... h5 {[%clk 0:00:36.2]} 42. Rg5 {[%clk 0:00:10.3]} 42... Kh6
{[%clk 0:00:36]} 43. Rg1 {[%clk 0:00:07.8]} 43... Rf8 {[%clk 0:00:35.4]} 44. Rh1
{[%clk 0:00:07.4]} 44... g6 {[%clk 0:00:33.5]} 45. Ke4 {[%clk 0:00:06.3]} 45...
Rf5 {[%clk 0:00:33.1]} 46. Rg1 {[%clk 0:00:05.7]} 46... h4 {[%clk 0:00:31.3]}
47. Rg4 {[%clk 0:00:05.1]} 47... Kh5 {[%clk 0:00:30.6]} 48. Rg1 {[%clk
0:00:04.9]} 48... h3 {[%clk 0:00:28.9]} 49. Rg3 {[%clk 0:00:04.6]} 49... Kh4
{[%clk 0:00:28.9]} 50. Rxg6 {[%clk 0:00:04.6]} 50... h2 {[%clk 0:00:26.6]} 51.
Rh6+ {[%clk 0:00:04.2]} 51... Rh5 {[%clk 0:00:25.5]} 52. Rxh5+ {[%clk
0:00:03.5]} 52... Kxh5 {[%clk 0:00:25.4]} 0-1

[Event "*** Titled Tuesday Blitz"]
[Site "Chess.com"]
[Date "2021.02.16"]
[Round "2"]
[White "Sergienko_Sergey"]
[Black "Margency"]
[Result "0-1"]
[WhiteElo "2448"]
[BlackElo "2691"]
[TimeControl "180+1"]
[EndTime "10:19:46 PST"]
[Termination "Margency won on time"]

1. e4 {[%clk 0:02:59.1]} 1... c5 {[%clk 0:02:59.8]} 2. Nf3 {[%clk 0:02:58.1]}
2... d6 {[%clk 0:03:00.4]} 3. d4 {[%clk 0:02:56.6]} 3... cxd4 {[%clk 0:03:01]}
4. Nxd4 {[%clk 0:02:56.7]} 4... Nf6 {[%clk 0:03:01.6]} 5. Nc3 {[%clk 0:02:56.6]}
5... a6 {[%clk 0:03:02.2]} 6. Bg5 {[%clk 0:02:55.4]} 6... e6 {[%clk 0:03:02.5]}
7. Qf3 {[%clk 0:02:54.4]} 7... Be7 {[%clk 0:02:57.3]} 8. O-O-O {[%clk
0:02:52.8]} 8... Qc7 {[%clk 0:02:52]} 9. Be2 {[%clk 0:02:48.9]} 9... Nc6 {[%clk
0:02:51]} 10. Qg3 {[%clk 0:02:41.8]} 10... Bd7 {[%clk 0:02:43.6]} 11. f4 {[%clk
0:02:22.5]} 11... b5 {[%clk 0:02:36.2]} 12. e5 {[%clk 0:02:04.7]} 12... dxe5
{[%clk 0:02:35.6]} 13. Nxc6 {[%clk 0:02:04]} 13... Bxc6 {[%clk 0:02:35.4]} 14.
fxe5 {[%clk 0:02:02.8]} 14... b4 {[%clk 0:02:22.2]} 15. exf6 {[%clk 0:01:05.1]}
15... Qxg3 {[%clk 0:02:21.4]} 16. hxg3 {[%clk 0:01:01.6]} 16... gxf6 {[%clk
0:02:21.3]} 17. Bd2 {[%clk 0:00:36]} 17... bxc3 {[%clk 0:02:17.6]} 18. Bxc3
{[%clk 0:00:35.8]} 18... Bxg2 {[%clk 0:02:07.7]} 19. Rh6 {[%clk 0:00:34.4]}
19... Be4 {[%clk 0:01:49.8]} 20. Bxf6 {[%clk 0:00:31.7]} 20... Bxf6 {[%clk
0:01:48.7]} 21. Rxf6 {[%clk 0:00:31.7]} 21... Ke7 {[%clk 0:01:45.3]} 22. Rf4
{[%clk 0:00:30.1]} 22... Bg6 {[%clk 0:01:43]} 23. Bd3 {[%clk 0:00:28.3]} 23...
Ra7 {[%clk 0:01:36.9]} 24. Rc4 {[%clk 0:00:27]} 24... a5 {[%clk 0:01:36]} 25. b3
{[%clk 0:00:25.5]} 25... Rb8 {[%clk 0:01:30.4]} 26. a4 {[%clk 0:00:23.3]} 26...
Kf6 {[%clk 0:01:26.2]} 27. Kb2 {[%clk 0:00:22.6]} 27... Rb6 {[%clk 0:01:17.8]}
28. Kc3 {[%clk 0:00:22.5]} 28... e5 {[%clk 0:01:15.7]} 29. Rf1+ {[%clk
0:00:21.7]} 29... Ke6 {[%clk 0:01:15.4]} 30. Rc5 {[%clk 0:00:21]} 30... f5
{[%clk 0:01:11.4]} 31. Bc4+ {[%clk 0:00:20.5]} 31... Kf6 {[%clk 0:01:09.8]} 32.
Rc8 {[%clk 0:00:18.7]} 32... Kg5 {[%clk 0:01:05.1]} 33. Rg8 {[%clk 0:00:17.1]}
33... Rf6 {[%clk 0:01:00.9]} 34. Re1 {[%clk 0:00:15.9]} 34... Re7 {[%clk
0:01:00.1]} 35. Rd1 {[%clk 0:00:14.3]} 35... f4 {[%clk 0:00:59.8]} 36. gxf4+
{[%clk 0:00:12.5]} 36... Rxf4 {[%clk 0:00:55.9]} 37. Rd5 {[%clk 0:00:11.7]}
37... Kg4 {[%clk 0:00:53.3]} 38. Rxa5 {[%clk 0:00:10.8]} 38... e4 {[%clk
0:00:53.1]} 39. Ra6 {[%clk 0:00:09.5]} 39... e3 {[%clk 0:00:52.5]} 40. Be2+
{[%clk 0:00:09]} 40... Kg3 {[%clk 0:00:52.4]} 41. Bd3 {[%clk 0:00:08.8]} 41...
Rc7+ {[%clk 0:00:45.8]} 42. Kb2 {[%clk 0:00:07.8]} 42... Rg4 {[%clk 0:00:44.7]}
43. Bxg6 {[%clk 0:00:06.5]} 43... hxg6 {[%clk 0:00:40.1]} 44. Re8 {[%clk
0:00:05.2]} 44... Kf2 {[%clk 0:00:34]} 45. Rf6+ {[%clk 0:00:04.4]} 45... Ke2
{[%clk 0:00:33.5]} 46. Rfe6 {[%clk 0:00:04.4]} 46... Rg3 {[%clk 0:00:33.9]} 47.
a5 {[%clk 0:00:04.4]} 47... Kd2 {[%clk 0:00:33.9]} 48. Rd8+ {[%clk 0:00:03.4]}
48... Ke1 {[%clk 0:00:33.7]} 49. Rde8 {[%clk 0:00:03.1]} 49... Kf2 {[%clk
0:00:29.4]} 50. Rf8+ {[%clk 0:00:03.1]} 50... Rf3 {[%clk 0:00:27.9]} 51. Rxf3+
{[%clk 0:00:01.6]} 51... Kxf3 {[%clk 0:00:27.9]} 52. a6 {[%clk 0:00:02]} 52...
g5 {[%clk 0:00:26.4]} 53. b4 {[%clk 0:00:01.7]} 53... g4 {[%clk 0:00:26.7]} 54.
b5 {[%clk 0:00:01.7]} 54... g3 {[%clk 0:00:26.4]} 55. b6 {[%clk 0:00:01.7]}
55... Rc5 {[%clk 0:00:26.3]} 0-1

[Event "*** Titled Tuesday Blitz"]
[Site "Chess.com"]
[Date "2021.02.16"]
[Round "2"]
[White "Zurability"]
[Black "MuhittinBuker"]
[Result "1-0"]
[WhiteElo "2605"]
[BlackElo "2073"]
[TimeControl "180+1"]
[EndTime "10:19:46 PST"]
[Termination "Zurability won on time"]

1. c4 {[%clk 0:02:38.1]} 1... Nf6 {[%clk 0:02:59.2]} 2. Nc3 {[%clk 0:02:36.6]}
2... g6 {[%clk 0:02:59]} 3. d4 {[%clk 0:02:36.9]} 3... Bg7 {[%clk 0:02:59.6]} 4.
e4 {[%clk 0:02:37.3]} 4... d6 {[%clk 0:02:58.5]} 5. Nf3 {[%clk 0:02:37.7]} 5...
O-O {[%clk 0:02:59.1]} 6. Be2 {[%clk 0:02:38]} 6... e5 {[%clk 0:02:59.1]} 7. d5
{[%clk 0:02:38.4]} 7... a5 {[%clk 0:02:58.1]} 8. Bg5 {[%clk 0:02:38.4]} 8... Na6
{[%clk 0:02:56]} 9. Nd2 {[%clk 0:02:38.2]} 9... Qe8 {[%clk 0:02:55.3]} 10. O-O
{[%clk 0:02:32.3]} 10... Nd7 {[%clk 0:02:51.7]} 11. Rb1 {[%clk 0:02:28.4]} 11...
h6 {[%clk 0:02:49.6]} 12. Bh4 {[%clk 0:02:25.2]} 12... g5 {[%clk 0:02:36]} 13.
Bg3 {[%clk 0:02:25]} 13... Ndc5 {[%clk 0:02:32.5]} 14. Bg4 {[%clk 0:02:11.3]}
14... f5 {[%clk 0:02:30.9]} 15. exf5 {[%clk 0:02:10.5]} 15... Bxf5 {[%clk
0:02:31]} 16. Bxf5 {[%clk 0:02:08.6]} 16... Rxf5 {[%clk 0:02:31.4]} 17. Nde4
{[%clk 0:02:08.2]} 17... h5 {[%clk 0:01:34.8]} 18. h4 {[%clk 0:01:53.3]} 18...
gxh4 {[%clk 0:01:25.1]} 19. Bxh4 {[%clk 0:01:52.1]} 19... Qg6 {[%clk 0:01:25]}
20. f3 {[%clk 0:01:41.5]} 20... Kh8 {[%clk 0:01:12.8]} 21. Bf2 {[%clk
0:01:36.1]} 21... Rg8 {[%clk 0:01:10.8]} 22. Bxc5 {[%clk 0:01:27.1]} 22... Bh6
{[%clk 0:01:02.1]} 23. Qe2 {[%clk 0:01:11.2]} 23... dxc5 {[%clk 0:01:01]} 24.
Rf2 {[%clk 0:01:02.7]} 24... b6 {[%clk 0:00:57.6]} 25. Kf1 {[%clk 0:00:54.9]}
25... h4 {[%clk 0:00:52.6]} 26. Ke1 {[%clk 0:00:51.6]} 26... Rh5 {[%clk
0:00:34.6]} 27. Kd1 {[%clk 0:00:50.1]} 27... h3 {[%clk 0:00:34.8]} 28. g4 {[%clk
0:00:50.4]} 28... Rh4 {[%clk 0:00:26.1]} 29. Kc2 {[%clk 0:00:48.4]} 29... Bf4
{[%clk 0:00:25.4]} 30. Rh1 {[%clk 0:00:45.9]} 30... Nb4+ {[%clk 0:00:20]} 31.
Kb1 {[%clk 0:00:44]} 31... a4 {[%clk 0:00:19.5]} 32. a3 {[%clk 0:00:42.5]} 32...
Na6 {[%clk 0:00:15.8]} 33. Nxa4 {[%clk 0:00:41.9]} 33... Nb8 {[%clk 0:00:15.3]}
34. Ka2 {[%clk 0:00:35.4]} 34... Nd7 {[%clk 0:00:15.4]} 35. Nac3 {[%clk
0:00:32.1]} 35... Kg7 {[%clk 0:00:13.5]} 36. Nb5 {[%clk 0:00:30.6]} 36... Rc8
{[%clk 0:00:11.6]} 37. d6 {[%clk 0:00:26.9]} 37... c6 {[%clk 0:00:11.3]} 38. Nc7
{[%clk 0:00:27.2]} 38... Kf7 {[%clk 0:00:08.2]} 39. Qd3 {[%clk 0:00:20.8]} 39...
Qh7 {[%clk 0:00:05.9]} 40. Re2 {[%clk 0:00:19.3]} 40... Nf6 {[%clk 0:00:05.8]}
41. d7 {[%clk 0:00:16.4]} 41... Rd8 {[%clk 0:00:05.1]} 42. Nd6+ {[%clk
0:00:12.1]} 42... Kg8 {[%clk 0:00:03.2]} 43. Qxh7+ {[%clk 0:00:05.5]} 43... Kxh7
{[%clk 0:00:03]} 44. Ne6 {[%clk 0:00:06]} 44... Rxd7 {[%clk 0:00:02.4]} 45. Nf8+
{[%clk 0:00:06.6]} 45... Kg7 {[%clk 0:00:01.8]} 46. Nxd7 {[%clk 0:00:06.8]}
46... Nxd7 {[%clk 0:00:02.3]} 47. Nf5+ {[%clk 0:00:07.6]} 47... Kf6 {[%clk
0:00:02.3]} 48. Nxh4 {[%clk 0:00:08.1]} 48... Kg5 {[%clk 0:00:02.4]} 49. Rxh3
{[%clk 0:00:08.2]} 49... Nf6 {[%clk 0:00:01.9]} 50. Nf5 {[%clk 0:00:08.4]} 1-0

[Event "*** Titled Tuesday Blitz"]
[Site "Chess.com"]
[Date "2021.02.16"]
[Round "2"]
[White "ObligatePawnivore"]
[Black "Grammnik"]
[Result "0-1"]
[WhiteElo "1739"]
[BlackElo "2378"]
[TimeControl "180+1"]
[EndTime "10:19:47 PST"]
[Termination "Grammnik won on time"]

1. c4 {[%clk 0:03:00.9]} 1... Nf6 {[%clk 0:02:57.3]} 2. Nc3 {[%clk 0:03:01.1]}
2... c6 {[%clk 0:02:56.7]} 3. d4 {[%clk 0:02:58.3]} 3... d5 {[%clk 0:02:56.4]}
4. cxd5 {[%clk 0:02:56.3]} 4... cxd5 {[%clk 0:02:57.3]} 5. Bf4 {[%clk
0:02:55.7]} 5... Nc6 {[%clk 0:02:55.9]} 6. e3 {[%clk 0:02:55.6]} 6... Bf5 {[%clk
0:02:54.5]} 7. Qb3 {[%clk 0:02:54]} 7... Na5 {[%clk 0:02:54]} 8. Qa4+ {[%clk
0:02:54.1]} 8... Bd7 {[%clk 0:02:53.7]} 9. Qc2 {[%clk 0:02:54]} 9... Rc8 {[%clk
0:02:53]} 10. Nf3 {[%clk 0:02:52.8]} 10... e6 {[%clk 0:02:51.2]} 11. Bd3 {[%clk
0:02:41.9]} 11... Be7 {[%clk 0:02:50.2]} 12. h3 {[%clk 0:02:41.1]} 12... O-O
{[%clk 0:02:43.1]} 13. O-O {[%clk 0:02:40.2]} 13... b5 {[%clk 0:02:39.3]} 14.
Qe2 {[%clk 0:02:23.1]} 14... b4 {[%clk 0:02:33.7]} 15. Nb1 {[%clk 0:02:17.9]}
15... Nc4 {[%clk 0:02:30.4]} 16. Ne5 {[%clk 0:01:51]} 16... Nxe5 {[%clk
0:02:04.3]} 17. Bxe5 {[%clk 0:01:49.8]} 17... Qb6 {[%clk 0:02:01]} 18. Nd2
{[%clk 0:01:42.7]} 18... a5 {[%clk 0:01:33.7]} 19. Rfc1 {[%clk 0:01:40.8]} 19...
Bc6 {[%clk 0:01:24.5]} 20. a4 {[%clk 0:01:03]} 20... Nd7 {[%clk 0:01:14.7]} 21.
Bg3 {[%clk 0:00:59.2]} 21... f5 {[%clk 0:01:11.9]} 22. Nb3 {[%clk 0:00:54.9]}
22... Bb7 {[%clk 0:01:07.3]} 23. Bb5 {[%clk 0:00:51.4]} 23... Nf6 {[%clk
0:01:03.2]} 24. f3 {[%clk 0:00:35.4]} 24... Nh5 {[%clk 0:00:54.1]} 25. Bf2
{[%clk 0:00:34.6]} 25... f4 {[%clk 0:00:54]} 26. e4 {[%clk 0:00:33.8]} 26...
dxe4 {[%clk 0:00:49]} 27. fxe4 {[%clk 0:00:34.7]} 27... f3 {[%clk 0:00:48.6]}
28. gxf3 {[%clk 0:00:33.6]} 28... Nf4 {[%clk 0:00:48.4]} 29. Qf1 {[%clk
0:00:26.9]} 29... Qd6 {[%clk 0:00:17.2]} 30. Bg3 {[%clk 0:00:20.6]} 30... e5
{[%clk 0:00:16.5]} 31. dxe5 {[%clk 0:00:16.8]} 31... Qxe5 {[%clk 0:00:16.4]} 32.
Kh2 {[%clk 0:00:16.5]} 32... h5 {[%clk 0:00:15.2]} 33. Qf2 {[%clk 0:00:14.1]}
33... h4 {[%clk 0:00:14.7]} 34. Bxh4 {[%clk 0:00:12.7]} 34... Bxh4 {[%clk
0:00:14.1]} 35. Qxh4 {[%clk 0:00:12.6]} 35... Nd3+ {[%clk 0:00:14]} 36. Qg3
{[%clk 0:00:10.6]} 36... Qxg3+ {[%clk 0:00:12.9]} 37. Kxg3 {[%clk 0:00:09.7]}
37... Nxc1 {[%clk 0:00:13.8]} 38. Rxc1 {[%clk 0:00:08.8]} 38... Rxc1 {[%clk
0:00:12.7]} 39. Nxc1 {[%clk 0:00:09.2]} 39... Rc8 {[%clk 0:00:13.1]} 40. Nd3
{[%clk 0:00:08.2]} 40... Rc2 {[%clk 0:00:12.7]} 41. b3 {[%clk 0:00:07.5]} 41...
Rc3 {[%clk 0:00:12.4]} 42. Kf4 {[%clk 0:00:05.8]} 42... Kf8 {[%clk 0:00:12.5]}
43. Bc4 {[%clk 0:00:05]} 43... Ke7 {[%clk 0:00:12.1]} 44. h4 {[%clk 0:00:04.2]}
44... Bc6 {[%clk 0:00:12.2]} 45. Ne5 {[%clk 0:00:03.7]} 45... Kd6 {[%clk
0:00:10.2]} 46. Nxc6 {[%clk 0:00:01]} 46... Kxc6 {[%clk 0:00:10]} 47. e5 {[%clk
0:00:01.4]} 47... Kc5 {[%clk 0:00:08.2]} 48. Kg5 {[%clk 0:00:01.5]} 48... Rxc4
{[%clk 0:00:08.2]} 0-1

[Event "*** Titled Tuesday Blitz"]
[Site "Chess.com"]
[Date "2021.02.16"]
[Round "2"]
[White "Vugar_Manafov"]
[Black "Kanthecarowin"]
[Result "1-0"]
[WhiteElo "2655"]
[BlackElo "2350"]
[TimeControl "180+1"]
[EndTime "10:19:48 PST"]
[Termination "Vugar_Manafov won by resignation"]

1. Nf3 {[%clk 0:03:00.5]} 1... Nf6 {[%clk 0:02:59.6]} 2. g3 {[%clk 0:02:59.5]}
2... e6 {[%clk 0:02:59.5]} 3. Bg2 {[%clk 0:02:59.3]} 3... d5 {[%clk 0:03:00]} 4.
O-O {[%clk 0:02:59]} 4... c5 {[%clk 0:03:00.6]} 5. d3 {[%clk 0:02:59.4]} 5...
Nc6 {[%clk 0:03:00.3]} 6. Nc3 {[%clk 0:02:59.5]} 6... Be7 {[%clk 0:02:58.8]} 7.
e4 {[%clk 0:02:58]} 7... d4 {[%clk 0:02:58.5]} 8. Ne2 {[%clk 0:02:56.7]} 8...
O-O {[%clk 0:02:56.4]} 9. Nd2 {[%clk 0:02:56]} 9... e5 {[%clk 0:02:51.9]} 10. h3
{[%clk 0:02:55.9]} 10... Ne8 {[%clk 0:01:58.5]} 11. f4 {[%clk 0:02:54.9]} 11...
f5 {[%clk 0:01:55.8]} 12. exf5 {[%clk 0:02:55.1]} 12... Bxf5 {[%clk 0:01:55.4]}
13. g4 {[%clk 0:02:55.1]} 13... Be6 {[%clk 0:01:51.7]} 14. f5 {[%clk 0:02:54.8]}
14... Bd5 {[%clk 0:01:51.2]} 15. Ne4 {[%clk 0:02:55.2]} 15... Nf6 {[%clk
0:01:39.2]} 16. N2g3 {[%clk 0:02:52.6]} 16... h6 {[%clk 0:01:36.8]} 17. Nxf6+
{[%clk 0:02:49.8]} 17... Bxf6 {[%clk 0:01:36.3]} 18. Ne4 {[%clk 0:02:49.5]}
18... Bxe4 {[%clk 0:01:36.1]} 19. Bxe4 {[%clk 0:02:50.1]} 19... Qd7 {[%clk
0:01:25.4]} 20. Qf3 {[%clk 0:02:48.9]} 20... Rab8 {[%clk 0:01:21.8]} 21. a3
{[%clk 0:02:45.3]} 21... Rfd8 {[%clk 0:01:21]} 22. Qg3 {[%clk 0:02:28.6]} 22...
Ne7 {[%clk 0:01:19.1]} 23. h4 {[%clk 0:02:27.7]} 23... g6 {[%clk 0:00:48.1]} 24.
fxg6 {[%clk 0:02:26.1]} 24... Bg7 {[%clk 0:00:48.1]} 25. Rf7 {[%clk 0:02:25]}
25... Qe6 {[%clk 0:00:46.6]} 26. Bf5 {[%clk 0:02:16.5]} 26... Qd6 {[%clk
0:00:43.2]} 27. h5 {[%clk 0:01:47]} 27... Rf8 {[%clk 0:00:41.8]} 28. Rxf8+
{[%clk 0:01:28.9]} 28... Rxf8 {[%clk 0:00:40.1]} 29. Be4 {[%clk 0:01:29.2]}
29... Nd5 {[%clk 0:00:36.6]} 30. Bd2 {[%clk 0:01:25.1]} 30... Nf4 {[%clk
0:00:36.3]} 31. Kh2 {[%clk 0:01:22.8]} 31... Ne2 {[%clk 0:00:22.9]} 32. Qg2
{[%clk 0:01:21.5]} 32... Nf4 {[%clk 0:00:23.1]} 33. Qg3 {[%clk 0:00:47.8]} 33...
Ne2 {[%clk 0:00:22.9]} 34. Qe1 {[%clk 0:00:37.9]} 34... Nf4 {[%clk 0:00:12.8]}
35. Kh1 {[%clk 0:00:23.2]} 35... Qf6 {[%clk 0:00:12.8]} 36. Qg3 {[%clk
0:00:15.6]} 36... Ne2 {[%clk 0:00:12.7]} 37. Qh2 {[%clk 0:00:15.7]} 37... Nf4
{[%clk 0:00:11.6]} 38. Rf1 {[%clk 0:00:14.6]} 38... Qg5 {[%clk 0:00:12.1]} 39.
Bf5 {[%clk 0:00:10.6]} 39... Rxf5 {[%clk 0:00:07.2]} 40. gxf5 {[%clk 0:00:11.5]}
40... Qxf5 {[%clk 0:00:08.1]} 41. Bxf4 {[%clk 0:00:11.5]} 41... exf4 {[%clk
0:00:09]} 42. Rxf4 {[%clk 0:00:11.3]} 42... Qd5+ {[%clk 0:00:09.2]} 43. Qg2
{[%clk 0:00:08.6]} 43... Qxh5+ {[%clk 0:00:08.9]} 44. Kg1 {[%clk 0:00:09.3]}
44... Qd1+ {[%clk 0:00:09]} 45. Rf1 {[%clk 0:00:09.5]} 45... Qh5 {[%clk
0:00:08.7]} 46. c4 {[%clk 0:00:07.7]} 46... dxc3 {[%clk 0:00:08]} 47. bxc3
{[%clk 0:00:08.6]} 47... Bxc3 {[%clk 0:00:08.4]} 48. Qa2+ {[%clk 0:00:09.1]} 1-0

[Event "*** Titled Tuesday Blitz"]
[Site "Chess.com"]
[Date "2021.02.16"]
[Round "2"]
[White "elextranjero00"]
[Black "pirulillo"]
[Result "1-0"]
[WhiteElo "2611"]
[BlackElo "2162"]
[TimeControl "180+1"]
[EndTime "10:19:50 PST"]
[Termination "elextranjero00 won on time"]

1. d4 {[%clk 0:03:00.1]} 1... Nf6 {[%clk 0:02:48.9]} 2. c4 {[%clk 0:02:50.8]}
2... g6 {[%clk 0:02:42.5]} 3. Nc3 {[%clk 0:02:48.7]} 3... Bg7 {[%clk 0:02:30.2]}
4. e4 {[%clk 0:02:47.6]} 4... d6 {[%clk 0:02:29.9]} 5. Be2 {[%clk 0:02:42.6]}
5... O-O {[%clk 0:02:29.2]} 6. Be3 {[%clk 0:02:42.7]} 6... Na6 {[%clk
0:02:23.8]} 7. Nf3 {[%clk 0:02:38.8]} 7... e5 {[%clk 0:02:10.2]} 8. O-O {[%clk
0:02:33.7]} 8... Ng4 {[%clk 0:02:06.2]} 9. Bg5 {[%clk 0:02:33.6]} 9... Qe8
{[%clk 0:02:05.5]} 10. Re1 {[%clk 0:02:08.3]} 10... f6 {[%clk 0:02:03.8]} 11.
Bh4 {[%clk 0:01:57.6]} 11... Nh6 {[%clk 0:02:02]} 12. Rc1 {[%clk 0:01:32.1]}
12... c6 {[%clk 0:01:59]} 13. c5 {[%clk 0:01:15.4]} 13... exd4 {[%clk
0:01:54.6]} 14. Bxa6 {[%clk 0:01:14.1]} 14... dxc5 {[%clk 0:01:44.9]} 15. Na4
{[%clk 0:01:10.6]} 15... bxa6 {[%clk 0:01:06.2]} 16. Nxc5 {[%clk 0:01:09.4]}
16... Bg4 {[%clk 0:00:59.4]} 17. Qxd4 {[%clk 0:00:59.7]} 17... Bxf3 {[%clk
0:00:53.3]} 18. gxf3 {[%clk 0:01:00.6]} 18... Kh8 {[%clk 0:00:50.2]} 19. Qc4
{[%clk 0:00:52]} 19... Nf7 {[%clk 0:00:44.5]} 20. Bg3 {[%clk 0:00:45.5]} 20...
Ng5 {[%clk 0:00:40.2]} 21. Kg2 {[%clk 0:00:44.6]} 21... Qc8 {[%clk 0:00:37]} 22.
Re3 {[%clk 0:00:33.3]} 22... Qh3+ {[%clk 0:00:36]} 23. Kg1 {[%clk 0:00:33.5]}
23... f5 {[%clk 0:00:31.9]} 24. exf5 {[%clk 0:00:20]} 24... gxf5 {[%clk
0:00:32.8]} 25. f4 {[%clk 0:00:20.1]} 25... Ne4 {[%clk 0:00:29.8]} 26. Nxe4
{[%clk 0:00:19.7]} 26... fxe4 {[%clk 0:00:30.7]} 27. Qxe4 {[%clk 0:00:19.1]}
27... Bxb2 {[%clk 0:00:25]} 28. Rxc6 {[%clk 0:00:17.2]} 28... Rad8 {[%clk
0:00:22.9]} 29. Re1 {[%clk 0:00:16.2]} 29... Bf6 {[%clk 0:00:19.8]} 30. Rxa6
{[%clk 0:00:11.8]} 30... Qh5 {[%clk 0:00:18.1]} 31. Ra3 {[%clk 0:00:07.6]} 31...
Rde8 {[%clk 0:00:18]} 32. Qb1 {[%clk 0:00:06]} 32... Rxe1+ {[%clk 0:00:17.3]}
33. Qxe1 {[%clk 0:00:06.9]} 33... Re8 {[%clk 0:00:17]} 34. Re3 {[%clk
0:00:06.9]} 34... Rg8 {[%clk 0:00:16.9]} 35. Qe2 {[%clk 0:00:07.3]} 35... Qh3
{[%clk 0:00:16.3]} 36. Qf3 {[%clk 0:00:05.5]} 36... Rc8 {[%clk 0:00:14.7]} 37.
Re1 {[%clk 0:00:06]} 37... Qf5 {[%clk 0:00:13.5]} 38. Qe4 {[%clk 0:00:05.2]}
38... Qg4 {[%clk 0:00:09.9]} 39. f5 {[%clk 0:00:05.1]} 39... Qxe4 {[%clk
0:00:07.9]} 40. Rxe4 {[%clk 0:00:06]} 40... Rc2 {[%clk 0:00:06.7]} 41. Ra4
{[%clk 0:00:05.8]} 41... Rc5 {[%clk 0:00:03]} 42. Rxa7 {[%clk 0:00:05.2]} 42...
Rxf5 {[%clk 0:00:03.6]} 43. a4 {[%clk 0:00:05.5]} 43... Rf3 {[%clk 0:00:03.2]}
44. Kg2 {[%clk 0:00:05.6]} 44... Ra3 {[%clk 0:00:03]} 45. a5 {[%clk 0:00:06.2]}
45... h5 {[%clk 0:00:03]} 46. h4 {[%clk 0:00:05.6]} 46... Ra4 {[%clk 0:00:02.2]}
47. a6 {[%clk 0:00:05.1]} 47... Bxh4 {[%clk 0:00:01.3]} 48. Bxh4 {[%clk
0:00:05.2]} 48... Rxh4 {[%clk 0:00:01.2]} 49. Rb7 {[%clk 0:00:05.9]} 1-0